bitfinex-derivatives/quotes_SOLF0:USTF0_20241029
["timestamp","ask_amount","ask_price","bid_price","bid_amount"]
[1730229389719,13.26118506,180.84,180.79,2.7656]
[1730229389915,13.26118506,180.81,180.73,2.0369]
[1730229390217,13.26118506,180.81,180.69,3.8334]
[1730229390218,13.26118506,180.79,180.7,5.06]
[1730229390518,13.26118506,180.76,180.6,5.5371]
[1730229390724,13.26118506,180.74,180.67,5.06]
[1730229391119,2.7668,180.72,180.67,5.06]
[1730229391321,13.26118506,180.72,180.64,5.06]
[1730229391618,13.26118506,180.72,180.65,2.7678]
[1730229392020,13.26118506,180.72,180.64,7.828]
[1730229392220,13.26118506,180.69,180.64,7.828]
[1730229392826,13.26118506,180.67,180.41,227.0]
[1730229393026,13.26118506,180.67,180.59,5.06]
[1730229393426,13.26118506,180.67,180.63,2.7681]
[1730229393726,13.26118506,180.67,180.59,5.06]
[1730229394118,13.26118506,180.67,180.63,2.7682]
[1730229394828,13.26118506,180.67,180.61,2.7684]
[1730229395125,13.26118506,180.69,180.59,5.06]
[1730229395726,13.26118506,180.67,180.59,5.06]
[1730229395927,2.7679,180.65,180.58,5.06]
[1730229396127,15.96740632,180.67,180.58,5.06]
[1730229396333,13.26118506,180.63,180.57,5.06]
[1730229396521,2.7685,180.62,180.57,7.8291]
[1730229396723,13.26118506,180.63,180.57,7.8291]
[1730229396926,1.8989,180.66,180.56,18.32118506]
[1730229397224,13.26118506,180.63,180.56,5.06]
[1730229398221,13.26118506,180.63,180.53,13.26118506]
[1730229398524,13.26118506,180.63,180.54,5.06]
[1730229398733,2.7685,180.62,180.56,2.7691]
[1730229398924,13.26118506,180.63,180.53,13.26118506]
[1730229399125,13.26118506,180.61,180.5,13.26118506]
[1730229399320,13.26118506,180.61,180.54,2.7694]
[1730229399321,2.7689,180.59,180.54,2.7694]
[1730229399524,13.26118506,180.59,180.5,5.06]
[1730229400129,16.02998506,180.59,180.54,2.7695]
[1730229400323,2.7688,180.59,180.5,5.06]
[1730229400530,2.0662,180.64,180.54,13.26118506]
[1730229400730,2.0662,180.64,180.55,5.06]
[1730229400924,2.0662,180.64,180.56,13.26118506]
[1730229401426,13.26118506,180.64,180.56,5.06]
[1730229401825,2.7684,180.62,180.57,2.769]
[1730229402029,13.26118506,180.64,180.56,5.06]
[1730229402333,16.02928506,180.64,180.58,2.7689]
[1730229402635,13.26118506,180.62,180.56,5.06]
[1730229403132,16.02968506,180.62,180.56,5.06]
[1730229403726,13.26118506,180.62,180.58,2.7689]
[1730229403926,13.26118506,180.62,180.56,5.06]
[1730229404226,20.04468506,180.65,180.6,2.7686]
[1730229405531,20.04468506,180.65,180.56,5.06]
[1730229405726,20.04468506,180.65,180.59,2.7688]
[1730229406231,17.27678506,180.65,180.6,2.7685]
[1730229406533,1.8989,180.66,180.58,13.26118506]
[1730229406934,1.8989,180.66,180.61,2.7683]
[1730229407234,1.8989,180.66,180.58,13.26118506]
[1730229407836,1.8989,180.66,180.56,5.06]
[1730229407837,17.24408506,180.71,180.61,13.26118506]
[1730229408027,17.24408506,180.71,180.62,5.16]
[1730229408532,20.01108506,180.71,180.62,5.16]
[1730229408728,20.01108506,180.71,180.61,13.26118506]
[1730229408930,20.01108506,180.71,180.62,5.16]
[1730229409431,17.24408506,180.71,180.62,5.16]
[1730229409630,2.7677,180.67,180.6,5.16]
[1730229410237,2.768,180.64,180.6,5.16]
[1730229410433,15.27268506,180.66,180.6,5.16]
[1730229410835,2.768,180.65,180.6,5.16]
[1730229411034,13.26118506,180.64,180.6,5.16]
[1730229411629,15.27268506,180.66,180.58,5.16]
[1730229411935,2.0115,180.66,180.58,18.42118506]
[1730229412439,2.0115,180.66,180.61,2.7683]
[1730229413140,13.26118506,180.7,180.58,18.42118506]
[1730229413538,13.26118506,180.7,180.62,2.7682]
[1730229413539,2.7675,180.68,180.62,2.7682]
[1730229413739,13.26118506,180.7,180.62,2.7682]
[1730229413932,13.26118506,180.7,180.59,5.16]
[1730229414241,13.26118506,180.7,180.61,13.26118506]
[1730229414643,16.02838506,180.7,180.63,2.7681]
[1730229414838,16.02838506,180.7,180.64,5.16]
[1730229415041,13.26118506,180.7,180.64,5.16]
[1730229415234,3.9829,180.71,180.64,5.16]
[1730229415537,2.7671,180.7,180.64,7.928]
[1730229417233,4.7118,180.71,180.66,2.7677]
[1730229417439,15.27078506,180.76,180.64,5.16]
[1730229417639,15.27078506,180.76,180.66,13.26118506]
[1730229418142,15.27078506,180.76,180.64,5.16]
[1730229418444,2.7669,180.72,180.67,2.7675]
[1730229418647,15.27078506,180.76,180.66,13.26118506]
[1730229419538,15.27078506,180.76,180.68,2.7674]
[1730229419539,2.7668,180.73,180.68,2.7674]
[1730229419949,15.27078506,180.76,180.64,7.0771]
[1730229420134,13.26118506,180.74,180.64,7.0771]
[1730229420443,13.26118506,180.72,180.64,5.16]
[1730229420647,13.26118506,180.72,180.59,13.26118506]
[1730229420648,2.7676,180.67,180.59,13.26118506]
[1730229420937,13.26118506,180.75,180.59,13.26118506]
[1730229420938,13.26118506,180.69,180.6,5.16]
[1730229421144,2.7678,180.66,180.61,7.9284]
[1730229422345,2.768,180.65,180.61,7.9284]
[1730229422849,13.26118506,180.71,180.61,5.16]
[1730229423044,13.26118506,180.71,180.63,2.768]
[1730229423246,13.26118506,180.71,180.61,5.16]
[1730229423445,2.7673,180.69,180.64,2.768]
[1730229423946,13.26118506,180.71,180.64,2.768]
[1730229424142,29.83118506,180.73,180.65,2.7677]
[1730229424543,2.7671,180.7,180.61,18.42118506]
[1730229424745,2.7671,180.7,180.65,2.7678]
[1730229424942,13.26118506,180.71,180.66,5.16]
[1730229425352,13.26118506,180.67,180.57,1.9982]
[1730229425545,13.26118506,180.67,180.61,5.16]
[1730229425746,2.768,180.65,180.61,2.7685]
[1730229425947,13.26118506,180.67,180.6,5.16]
[1730229426154,13.26118506,180.64,180.6,5.16]
[1730229426450,2.7684,180.62,180.6,5.16]
[1730229426646,2.7684,180.62,180.58,2.7689]
[1730229426852,25.19117518,180.66,180.57,5.16]
[1730229427245,41.76117518,180.66,180.53,162.29876293]
[1730229427554,41.76117518,180.66,180.54,5.16]
[1730229427743,21.28427518,180.63,180.54,5.16]
[1730229428147,2.7689,180.59,180.54,5.16]
[1730229428347,21.28427518,180.63,180.54,5.16]
[1730229428856,2.7688,180.59,180.54,5.16]
[1730229429152,21.28427518,180.63,180.54,5.16]
[1730229429948,2.7689,180.59,180.54,7.9296]
[1730229430256,21.28427518,180.63,180.54,7.9296]
[1730229430753,21.28427518,180.63,180.54,2.7696]
[1730229430951,21.28427518,180.63,180.53,5.16]
[1730229431152,41.76117518,180.66,180.56,2.7692]
[1730229431552,41.76117518,180.66,180.56,2.7691]
[1730229431754,41.76117518,180.66,180.53,5.16]
[1730229431957,2.7684,180.62,180.53,5.16]
[1730229432258,41.76117518,180.66,180.53,5.16]
[1730229432453,2.7688,180.59,180.53,5.16]
[1730229432865,21.28427518,180.63,180.56,2.7691]
[1730229433047,2.7686,180.61,180.53,5.16]
[1730229433455,2.7686,180.61,180.57,2.7691]
[1730229433653,2.7684,180.62,180.53,5.16]
[1730229433855,21.28427518,180.63,180.53,5.16]
[1730229434162,21.28427518,180.63,180.56,2.7692]
[1730229434457,2.7688,180.6,180.56,2.7692]
[1730229434853,2.7685,180.61,180.57,2.769]
[1730229435060,41.76117518,180.66,180.53,5.16]
[1730229435752,25.19117518,180.66,180.53,5.16]
[1730229435952,3.9069,180.66,180.55,21.28427518]
[1730229436261,2.7681,180.64,180.61,2.7684]
[1730229436455,3.9069,180.66,180.61,5.08]
[1730229436756,2.0584,180.68,180.61,5.08]
[1730229437257,21.28427518,180.69,180.61,5.08]
[1730229437258,2.7673,180.69,180.65,2.7678]
[1730229437953,2.7672,180.7,180.65,2.7678]
[1730229438557,262.10265017,180.79,180.66,5.08]
[1730229438767,2.77688514,180.84,180.71,21.28427518]
[1730229438958,3.9771,180.87,180.75,21.28427518]
[1730229439265,21.28427518,180.86,180.76,5.74]
[1730229439456,21.28427518,180.86,180.77,5.74]
[1730229439762,2.7654,180.82,180.75,2.7663]
[1730229439958,37.85427518,180.86,180.71,221.94136282]
[1730229440160,2.7658,180.79,180.72,2.7667]
[1730229440360,40.63039287,180.83,180.71,221.94136282]
[1730229440657,40.63039287,180.83,180.72,5.74]
[1730229441048,21.28427518,180.8,180.73,5.74]
[1730229441248,2.766,180.78,180.73,5.74]
[1730229441451,21.28427518,180.77,180.63,21.28427518]
[1730229441753,1.9042,180.77,180.71,2.7668]
[1730229441958,1.9042,180.77,180.61,223.94867679]
[1730229442157,37.85427518,180.74,180.62,5.74]
[1730229442350,2.7672,180.7,180.62,5.74]
[1730229442551,23.18847518,180.77,180.62,5.74]
[1730229442552,45.49847518,180.77,180.62,5.74]
[1730229442756,23.18847518,180.77,180.63,21.28427518]
[1730229443059,4.6703,180.77,180.71,2.7669]
[1730229443557,2.7662,180.76,180.71,2.7669]
[1730229443757,1.9042,180.77,180.71,2.7669]
[1730229444053,4.6703,180.77,180.72,2.7668]
[1730229444452,4.6703,180.77,180.7,5.74]
[1730229444659,4.6703,180.77,180.71,2.7668]
[1730229444866,1.9042,180.77,180.71,2.7668]
[1730229445051,1.9042,180.77,180.69,5.74]
[1730229445766,21.28427518,180.76,180.67,2.7675]
[1730229445970,21.28427518,180.73,180.63,5.74]
[1730229446553,2.7669,180.72,180.66,2.7676]
[1730229446868,21.28427518,180.73,180.63,5.74]
[1730229447160,1.9839,180.71,180.63,5.74]
[1730229447755,2.7674,180.69,180.64,2.768]
[1730229447959,1.9839,180.71,180.63,5.74]
[1730229449668,27.02427518,180.76,180.63,5.74]
[1730229449869,29.06887518,180.76,180.63,5.74]
[1730229450068,23.32887518,180.76,180.63,27.02427518]
[1730229450263,2.0446,180.76,180.63,27.02427518]
[1730229450465,2.0446,180.76,180.66,21.28427518]
[1730229450772,1.9042,180.77,180.74,2.7664]
[1730229450971,1.9042,180.77,180.73,5.74]
[1730229451268,1.9042,180.77,180.72,5.74]
[1730229451461,21.28427518,180.76,180.68,5.74]
[1730229451662,2.767,180.71,180.68,5.74]
[1730229452259,21.28427518,180.76,180.68,5.74]
[1730229452464,2.7668,180.72,180.68,5.74]
[1730229453063,21.28427518,180.76,180.68,5.74]
[1730229453263,21.28427518,180.76,180.68,8.5074]
[1730229453264,2.7667,180.73,180.68,8.5074]
[1730229453670,2.7667,180.73,180.68,5.74]
[1730229454874,21.28427518,180.76,180.68,5.74]
[1730229455166,37.85427518,180.76,180.68,5.74]
[1730229455376,21.28427518,180.73,180.68,5.74]
[1730229455574,2.7672,180.7,180.68,5.74]
[1730229455769,21.28427518,180.73,180.68,5.74]
[1730229455966,23.27417518,180.73,180.68,5.74]
[1730229456167,23.27417518,180.73,180.64,2.7679]
[1730229456364,23.27417518,180.73,180.63,59.8]
[1730229456561,23.27417518,180.73,180.63,65.54]
[1730229456872,2.7677,180.67,180.57,23.22377518]
[1730229457067,2.7677,180.67,180.62,2.7683]
[1730229457964,2.7677,180.67,180.6,5.74]
[1730229458165,2.7679,180.65,180.6,8.5086]
[1730229458573,2.7679,180.65,180.61,5.74]
[1730229458971,3.8379,180.69,180.6,2.7686]
[1730229459277,3.8379,180.69,180.6,5.74]
[1730229459462,3.8379,180.69,180.62,2.7683]
[1730229459665,2.7678,180.66,180.62,2.7683]
[1730229459866,3.8379,180.69,180.6,5.74]
[1730229460161,2.7676,180.67,180.61,2.7685]
[1730229460364,3.8379,180.69,180.61,2.7685]
[1730229460769,2.768,180.64,180.6,8.5086]
[1730229461769,3.8379,180.69,180.6,5.74]
[1730229461977,3.8379,180.69,180.6,27.02427518]
[1730229462173,1.8868,180.69,180.6,27.02427518]
[1730229462372,2.7677,180.66,180.63,2.7682]
[1730229462884,2.768,180.65,180.62,2.7682]
[1730229463471,2.7677,180.67,180.63,2.7681]
[1730229463676,1.8868,180.69,180.63,2.7681]
[1730229464081,2.7678,180.66,180.63,2.7681]
[1730229464581,1.8868,180.69,180.6,5.74]
[1730229464883,1.8868,180.69,180.54,81.08427518]
[1730229465082,1.8868,180.69,180.57,5.74]
[1730229465277,2.7686,180.61,180.58,2.7689]
[1730229465788,1.8868,180.69,180.57,5.74]
[1730229465789,2.7687,180.6,180.57,8.509]
[1730229465976,21.28427518,180.67,180.57,5.74]
[1730229466277,2.768,180.64,180.6,2.7686]
[1730229466474,2.768,180.64,180.54,81.08427518]
[1730229466475,15.18359192,180.69,180.58,13.29679192]
[1730229466678,13.29679192,180.67,180.59,5.74]
[1730229466982,2.7683,180.63,180.59,8.5087]
[1730229467183,13.29679192,180.67,180.59,5.74]
[1730229467392,2.768,180.65,180.61,2.7683]
[1730229467680,15.18359192,180.69,180.59,5.74]
[1730229467881,1.8868,180.69,180.61,13.29679192]
[1730229468387,2.769,180.58,180.54,2.7694]
[1730229468582,13.29679192,180.62,180.53,5.8]
[1730229468779,13.29679192,180.64,180.54,5.8]
[1730229469083,2.7684,180.62,180.55,13.29679192]
[1730229469481,2.7684,180.62,180.58,2.7688]
[1730229469686,13.29679192,180.66,180.55,13.29679192]
[1730229469979,13.29679192,180.66,180.59,2.7686]
[1730229470180,15.18359192,180.69,180.59,5.8]
[1730229470586,2.7681,180.64,180.6,2.7686]
[1730229470794,15.18359192,180.69,180.6,2.7686]
[1730229471080,15.18359192,180.69,180.59,5.8]
[1730229471276,2.7683,180.63,180.59,8.5688]
[1730229471679,13.29679192,180.67,180.59,8.5688]
[1730229471680,13.29679192,180.67,180.59,5.8]
[1730229471882,2.7684,180.62,180.59,5.8]
[1730229472486,2.7684,180.62,180.59,8.5688]
[1730229474280,2.7685,180.61,180.59,5.8]
[1730229474677,13.29679192,180.67,180.59,5.8]
[1730229474881,13.29679192,180.64,180.59,5.8]
[1730229475285,13.29679192,180.64,180.57,2.769]
[1730229475586,2.7685,180.61,180.58,2.7689]
[1730229476291,13.29679192,180.64,180.57,5.8]
[1730229477195,2.76487803,180.63,180.55,2.7694]
[1730229477396,2.7688,180.59,180.56,5.8]
[1730229479004,2.7686,180.61,180.56,8.5692]
[1730229479199,2.75462542,180.62,180.56,5.8]
[1730229479700,2.7687,180.6,180.56,5.8]
[1730229479905,13.29679192,180.63,180.56,5.8]
[1730229480495,2.7684,180.62,180.57,2.769]
[1730229481409,2.7684,180.62,180.56,5.8]
[1730229481609,13.29679192,180.61,180.56,5.8]
[1730229481798,13.29679192,180.59,180.55,5.8]
[1730229482409,3.9176,180.62,180.55,5.8]
[1730229483299,2.7691,180.58,180.55,5.8]
[1730229484810,13.29679192,180.61,180.55,5.8]
[1730229485009,2.7691,180.57,180.55,5.8]
[1730229485407,13.29679192,180.61,180.49,13.29679192]
[1730229485712,13.29679192,180.61,180.5,5.8]
[1730229486210,2.7695,180.55,180.52,2.7697]
[1730229486410,13.29679192,180.61,180.5,5.8]
[1730229486803,2.7694,180.55,180.52,2.7698]
[1730229487107,2.7694,180.55,180.5,5.8]
[1730229488307,2.7696,180.54,180.5,5.8]
[1730229488608,29.86679192,180.61,180.5,5.8]
[1730229489007,2.7695,180.55,180.5,5.8]
[1730229489208,2.7695,180.55,180.52,2.7698]
[1730229490511,2.7693,180.56,180.53,2.7696]
[1730229491010,29.86679192,180.61,180.51,5.8]
[1730229491321,2.7693,180.56,180.51,19.09679192]
[1730229491712,2.7689,180.58,180.51,19.09679192]
[1730229492009,3.9176,180.62,180.53,13.29679192]
[1730229492913,2.7687,180.6,180.57,2.769]
[1730229494619,2.7693,180.56,180.53,2.7696]
[1730229494813,2.7693,180.56,180.37,8.3162]
[1730229494814,13.29679192,180.56,180.37,8.3162]
[1730229495007,13.29679192,180.54,180.42,13.29679192]
[1730229495209,13.29679192,180.54,180.47,2.7706]
[1730229495408,2.71391578,180.53,180.43,5.8]
[1730229495610,2.7693,180.56,180.5,2.7701]
[1730229495816,2.7693,180.56,180.5,5.8]
[1730229497215,2.7693,180.56,180.52,2.7699]
[1730229497414,2.7693,180.56,180.5,5.8]
[1730229497810,2.7693,180.56,180.51,2.77]
[1730229498023,29.86679192,180.59,180.5,5.8]
[1730229498223,2.7693,180.56,180.5,5.8]
[1730229498708,2.0661,180.6,180.52,13.29679192]
[1730229499111,1.9147,180.62,180.54,13.29679192]
[1730229499409,1.9147,180.62,180.55,5.5]
[1730229499804,4.6831,180.62,180.58,2.7689]
[1730229500209,1.9147,180.62,180.55,5.5]
[1730229500411,1.9147,180.62,180.55,8.2694]
[1730229500412,2.7688,180.59,180.55,8.2694]
[1730229500614,1.9147,180.62,180.55,5.5]
[1730229500911,4.783,180.64,180.6,2.7686]
[1730229501511,2.7682,180.63,180.59,2.7687]
[1730229501915,2.0149,180.64,180.57,13.29679192]
[1730229502114,2.7679,180.65,180.57,13.29679192]
[1730229502315,3.8897,180.68,180.59,13.29679192]
[1730229502613,3.8897,180.68,180.6,5.5]
[1730229503219,2.7677,180.67,180.63,2.7682]
[1730229503518,3.8897,180.68,180.6,5.5]
[1730229504615,2.7679,180.66,180.62,2.7683]
[1730229505010,13.29679192,180.67,180.6,5.5]
[1730229505213,2.7684,180.62,180.6,5.5]
[1730229505414,13.29679192,180.65,180.6,5.5]
[1730229505620,2.7683,180.63,180.6,5.5]
[1730229505917,13.29679192,180.65,180.53,15.24229192]
[1730229506115,13.29679192,180.63,180.54,5.5]
[1730229506917,2.7687,180.6,180.55,2.7693]
[1730229507614,2.7687,180.6,180.54,5.5]
[1730229508124,2.7685,180.61,180.57,2.7689]
[1730229508311,2.7685,180.61,180.54,5.5]
[1730229508813,2.7685,180.61,180.57,2.769]
[1730229509017,13.29679192,180.65,180.57,2.769]
[1730229509218,13.29679192,180.65,180.57,5.5]
[1730229509518,13.29679192,180.63,180.57,5.5]
[1730229509920,13.29679192,180.6,180.53,5.5]
[1730229510317,2.7693,180.56,180.53,8.2697]
[1730229510615,2.7693,180.56,180.53,5.5]
[1730229511211,13.29679192,180.6,180.53,5.5]
[1730229511420,15.19359192,180.6,180.52,2.7698]
[1730229511612,13.29679192,180.58,180.5,5.5]
[1730229512020,13.29679192,180.58,180.5,8.2701]
[1730229512621,2.7697,180.54,180.5,8.2701]
[1730229512818,2.7697,180.54,180.51,5.5]
[1730229513118,1.9114,180.59,180.53,2.7697]
[1730229513319,1.9114,180.59,180.51,5.5]
[1730229513320,2.7694,180.55,180.51,5.5]
[1730229514513,13.29679192,180.57,180.41,65.3831]
[1730229514723,29.86679192,180.57,180.47,2.7705]
[1730229514917,13.29679192,180.53,180.43,5.5]
[1730229516216,2.7705,180.48,180.45,2.7708]
[1730229516420,2.7705,180.48,180.46,5.5]
[1730229517421,13.29679192,180.53,180.46,5.5]
[1730229517631,2.7706,180.47,180.46,5.5]
[1730229519332,1.8989,180.52,180.46,5.5]
[1730229519333,2.7706,180.48,180.46,5.5]
[1730229522720,2.7703,180.5,180.47,2.7706]
[1730229523124,1.8989,180.52,180.47,2.7706]
[1730229523325,1.8989,180.52,180.46,5.5]
[1730229523526,2.7703,180.5,180.46,8.2707]
[1730229525225,2.7703,180.5,180.44,13.29679192]
[1730229525226,2.78045804,180.5,180.44,13.29679192]
[1730229525433,2.7707,180.47,180.43,5.52]
[1730229525730,2.83785282,180.49,180.43,5.52]
[1730229525919,2.7706,180.48,180.44,8.291]
[1730229526927,2.7706,180.48,180.42,13.29679192]
[1730229526928,2.81289857,180.49,180.43,5.52]
[1730229527124,2.0644,180.51,180.43,5.52]
[1730229527529,4.87373198,180.51,180.43,5.52]
[1730229528624,4.87373198,180.51,180.43,8.2912]
[1730229529022,13.29679192,180.5,180.43,5.52]
[1730229529223,13.29679192,180.5,180.36,1.9431]
[1730229529224,29.86679192,180.47,180.37,18.65679192]
[1730229529427,29.86679192,180.47,180.37,13.29679192]
[1730229530128,2.7717,180.41,180.37,13.29679192]
[1730229531135,29.86679192,180.47,180.37,13.29679192]
[1730229531642,16.57,180.48,180.38,13.29679192]
[1730229532726,1.9051,180.49,180.41,13.29679192]
[1730229532931,18.4751,180.49,180.37,5.36]
[1730229533131,18.4751,180.49,180.38,13.29679192]
[1730229533838,2.7708,180.45,180.39,2.7715]
[1730229535230,2.7708,180.45,180.38,13.29679192]
[1730229535436,1.9051,180.49,180.42,13.29679192]
[1730229535636,1.9051,180.49,180.42,18.65679192]
[1730229536239,4.87373198,180.51,180.42,18.65679192]
[1730229536833,2.77,180.5,180.42,18.65679192]
[1730229537443,2.77,180.5,180.45,2.7706]
[1730229537639,2.77,180.5,180.42,18.65679192]
[1730229538040,4.87373198,180.51,180.42,18.65679192]
[1730229539447,7.64363198,180.51,180.46,2.7704]
[1730229539843,4.87373198,180.51,180.46,2.7704]
[1730229540348,1.8989,180.52,180.45,13.29679192]
[1730229540538,2.7694,180.54,180.49,2.7699]
[1730229540740,13.29679192,180.5,180.19,13.8744]
[1730229540940,13.29679192,180.48,180.37,13.29679192]
[1730229541242,13.29679192,180.48,180.42,2.771]
[1730229541443,2.80449251,180.47,180.38,5.36]
[1730229541738,19.09619192,180.49,180.38,5.36]
[1730229541944,2.71852468,180.48,180.38,5.36]
[1730229542148,2.7704,180.47,180.43,2.7708]
[1730229543040,2.7704,180.47,180.43,2.7709]
[1730229544143,2.7704,180.47,180.39,13.29679192]
[1730229544344,2.7704,180.47,180.44,2.7708]
[1730229544644,8.59794678,180.49,180.38,5.36]
[1730229544851,13.29679192,180.48,180.41,2.7711]
[1730229545751,2.7704,180.47,180.43,2.7709]
[1730229546045,2.84125575,180.5,180.44,13.29679192]
[1730229546245,13.29679192,180.52,180.41,18.65679192]
[1730229546447,29.86679192,180.52,180.41,18.65679192]
[1730229546640,1.9599,180.51,180.41,18.65679192]
[1730229546842,4.67621181,180.51,180.41,18.65679192]
[1730229547848,4.67621181,180.51,180.41,13.29679192]
[1730229548050,2.0735,180.5,180.41,13.29679192]
[1730229548849,2.7701,180.49,180.45,2.7707]
[1730229550249,2.7701,180.49,180.41,13.29679192]
[1730229550453,2.7701,180.49,180.44,2.7708]
[1730229551452,2.7702,180.48,180.44,2.7708]
[1730229551658,2.0735,180.5,180.43,2.771]
[1730229551949,2.0735,180.5,180.41,13.29679192]
[1730229552150,2.7702,180.49,180.44,2.7707]
[1730229552353,2.0735,180.5,180.44,2.7707]
[1730229552942,13.29679192,180.46,180.35,5.36]
[1730229553142,13.29679192,180.47,180.35,18.65679192]
[1730229553654,2.7707,180.45,180.35,18.65679192]
[1730229554047,13.29679192,180.47,180.35,18.65679192]
[1730229554847,2.7708,180.45,180.4,2.7713]
[1730229555444,2.7708,180.45,180.35,18.65679192]
[1730229555842,5.36,180.49,180.38,13.29679192]
[1730229556044,4.1047,180.5,180.36,2.0619]
[1730229556253,259.73062094,180.54,180.47,2.7703]
[1730229556456,259.73062094,180.54,180.44,5.36]
[1730229556754,259.73062094,180.54,180.46,2.7705]
[1730229557056,13.29679192,180.53,180.44,5.36]
[1730229557550,13.29679192,180.53,180.44,8.1308]
[1730229557954,13.29679192,180.51,180.44,5.36]
[1730229558252,32.6720285,180.51,180.44,5.36]
[1730229558459,32.6720285,180.51,180.4,5.36]
[1730229558754,2.7707,180.46,180.41,2.7712]
[1730229558959,37.7920285,180.51,180.4,5.36]
[1730229559155,4.0843,180.5,180.4,5.36]
[1730229559350,2.7704,180.47,180.41,2.7712]
[1730229559551,4.0843,180.5,180.41,2.7712]
[1730229559952,13.29679192,180.48,180.41,2.7712]
[1730229560454,2.771,180.43,180.4,5.36]
[1730229560656,18.5968,180.49,180.36,59.88]
[1730229560956,2.7712,180.42,180.38,7.8916]
[1730229561544,2.771,180.43,180.38,7.8916]
[1730229561749,2.771,180.43,180.38,5.12]
[1730229562054,2.771,180.43,180.39,2.7716]
[1730229565061,2.7707,180.45,180.41,2.7712]
[1730229565458,16.57,180.47,180.37,5.12]
[1730229565659,13.29679192,180.45,180.37,7.8918]
[1730229566054,16.57,180.47,180.37,7.8918]
[1730229566259,2.7713,180.42,180.37,7.8918]
[1730229566664,2.0268,180.49,180.38,13.29679192]
[1730229566665,2.7707,180.45,180.38,13.29679192]
[1730229567061,29.86679192,180.48,180.38,13.29679192]
[1730229567557,29.86679192,180.48,180.39,2.7715]
[1730229567558,2.771,180.43,180.39,2.7715]
[1730229567866,2.7719,180.37,180.33,2.7724]
[1730229568067,16.57,180.45,180.32,1.906]
[1730229568068,13.29679192,180.42,180.32,1.906]
[1730229568362,29.86679192,180.42,180.18,59.88]
[1730229568564,13.29679192,180.38,180.28,2.7732]
[1730229568760,21.2277655,180.38,180.28,2.7732]
[1730229568959,2.7722,180.35,180.28,2.7732]
[1730229569154,13.29679192,180.36,180.27,2.7733]
[1730229569356,13.29679192,180.34,180.24,2.1359]
[1730229569570,13.29679192,180.36,180.26,13.29679192]
[1730229569757,13.29679192,180.36,180.29,2.773]
[1730229569954,13.29679192,180.36,180.27,5.14]
[1730229570358,13.29679192,180.36,180.26,13.29679192]
[1730229570359,2.7726,180.33,180.28,2.7733]
[1730229570659,2.75712005,180.35,180.26,18.43679192]
[1730229570966,2.7725,180.34,180.28,2.7732]
[1730229571566,13.29679192,180.36,180.26,18.43679192]
[1730229571759,2.7721,180.36,180.28,13.29679192]
[1730229571966,16.04308994,180.38,180.28,13.29679192]
[1730229572268,2.772,180.37,180.31,2.7727]
[1730229572462,16.04308994,180.38,180.31,2.7727]
[1730229573257,2.7721,180.36,180.31,2.7727]
[1730229573469,16.04349246,180.38,180.32,2.7726]
[1730229573666,2.7721,180.36,180.28,13.29679192]
[1730229573866,13.29679192,180.38,180.28,13.29679192]
[1730229574070,18.43679192,180.4,180.3,13.29679192]
[1730229574368,2.70757692,180.39,180.3,13.29679192]
[1730229574569,2.772,180.37,180.32,2.7725]
[1730229575572,13.29679192,180.38,180.27,4.0716]
[1730229575777,13.29679192,180.38,180.28,5.14]
[1730229576066,13.29679192,180.34,180.27,2.7734]
[1730229576263,13.29679192,180.34,180.24,7.2759]
[1730229576664,2.7728,180.32,180.27,2.7733]
[1730229576862,16.06609152,180.34,180.24,2.1359]
[1730229577371,13.29679192,180.32,180.24,2.1359]